fUST/lending_fUST_20251030
["ID","MTS","AMOUNT","RATE_DAILY","PERIOD"]
[392697404,1761833439410,-500.0,0.00043835,120]
[392697405,1761833439420,-500.0,0.00043835,120]
[392697406,1761833439429,-500.0,0.00043835,120]
[392697407,1761833439438,-500.0,0.00043835,120]
[392697408,1761833439448,-500.0,0.00043835,120]
[392697409,1761833439458,-500.0,0.00043835,120]
[392697411,1761833439467,-741.36,0.00043835,120]
[392697412,1761833439478,-500.0,0.00043835,120]
[392697413,1761833439488,-500.0,0.00043835,120]
[392697414,1761833439497,-500.0,0.00043835,120]
[392697415,1761833439510,-500.0,0.00043835,120]
[392697416,1761833439519,-500.0,0.00043835,120]
[392697417,1761833439529,-500.0,0.00043835,120]
[392697418,1761833439538,-500.0,0.00043835,120]
[392697419,1761833439548,-658.0,0.00043835,120]
[392697420,1761833439557,-525.0,0.00043835,120]
[392697421,1761833439567,-1859.73,0.00043835,120]
[392697422,1761833439577,-500.0,0.00043835,120]
[392697423,1761833439587,-500.0,0.00043835,120]
[392697424,1761833439596,-500.0,0.00043835,120]
[392697425,1761833439605,-500.0,0.00043835,120]
[392697426,1761833439614,-500.0,0.00043835,120]
[392697427,1761833439624,-500.0,0.00043835,120]
[392697428,1761833439633,-500.0,0.00043835,120]
[392697429,1761833439642,-500.0,0.00043835,120]
[392697430,1761833439651,-500.0,0.00043835,120]
[392697431,1761833439661,-500.0,0.00043835,120]
[392697432,1761833439671,-500.0,0.00043835,120]
[392697433,1761833439680,-500.0,0.00043835,120]
[392697434,1761833439689,-500.0,0.00043835,120]
[392697435,1761833439698,-381.05213312,0.00043835,20]
[392697436,1761833439709,-500.0,0.00043835,120]
[392697437,1761833439718,-500.0,0.00043835,120]
[392697438,1761833439728,-500.0,0.00043835,120]
[392697439,1761833439737,-180.19108075,0.00043835,120]
[392697440,1761833439746,-502.42,0.00043835,120]
[392697441,1761833439757,-156.81531199,0.00043835,120]
[392697442,1761833439766,-500.0,0.00043835,120]
[392697443,1761833439776,-500.0,0.00043835,120]
[392697444,1761833439786,-500.0,0.00043835,120]
[392697445,1761833439795,-500.0,0.00043835,120]
[392697446,1761833439805,-500.0,0.00043835,120]
[392697447,1761833439815,-500.0,0.00043835,120]
[392697448,1761833439825,-569.33,0.00043835,120]
[392697450,1761833439835,-500.0,0.00043835,120]
[392697451,1761833439844,-500.0,0.00043835,120]
[392697452,1761833439853,-500.0,0.00043835,120]
[392697453,1761833439862,-500.0,0.00043835,120]
[392697454,1761833439871,-641.74,0.00043835,120]
[392697455,1761833439880,-2279.31,0.00043835,120]
[392697456,1761833439890,-500.0,0.00043835,120]
[392697457,1761833439899,-500.0,0.00043835,120]
[392697458,1761833439909,-560.29,0.00043835,120]
[392697459,1761833439919,-500.0,0.00043835,120]
[392697460,1761833439929,-500.0,0.00043835,120]
[392697461,1761833439940,-500.0,0.00043835,120]
[392697462,1761833439950,-500.0,0.00043835,120]
[392697464,1761833439959,-500.0,0.00043835,120]
[392697465,1761833439969,-500.0,0.00043835,120]
[392697467,1761833439978,-500.0,0.00043835,120]
[392697469,1761833439988,-500.0,0.00043835,120]
[392697471,1761833439997,-500.0,0.00043835,120]
[392697473,1761833440008,-575.32,0.00043835,120]
[392697474,1761833440017,-544.13,0.00043835,120]
[392697475,1761833440026,-500.0,0.00043835,120]
[392697476,1761833440036,-500.0,0.00043835,120]
[392697477,1761833440045,-630.06,0.00043835,120]
[392697478,1761833440054,-500.0,0.00043835,120]
[392697479,1761833440064,-582.04,0.00043835,120]
[392697480,1761833440073,-500.0,0.00043835,120]
[392697481,1761833440083,-500.0,0.00043835,120]
[392697482,1761833440093,-500.0,0.00043835,120]
[392697483,1761833440102,-500.0,0.00043835,120]
[392697484,1761833440112,-647.43,0.00043835,120]
[392697485,1761833440121,-500.0,0.00043835,120]
[392697486,1761833440131,-500.0,0.00043835,120]
[392697487,1761833440140,-500.0,0.00043835,120]
[392697488,1761833440150,-500.0,0.00043835,120]
[392697489,1761833440166,-500.0,0.00043873,10]
[392697490,1761833440175,-500.0,0.00043873,10]
[392697492,1761833440185,-500.0,0.00043873,5]
[392697493,1761833440196,-500.66529198,0.00043873,2]
[392697494,1761833440205,-500.0,0.00043873,10]
[392697495,1761833440215,-560.54329885,0.00043873,8]
[392697496,1761833440225,-500.48501443,0.00043873,10]
[392697497,1761833440236,-500.27944685,0.00043873,10]
[392697498,1761833440245,-256.59580769,0.00043873,10]
[392697499,1761833440256,-500.0,0.00043873,10]
[392697500,1761833440265,-500.0,0.00043873,10]
[392697501,1761833440275,-500.0,0.00043873,10]
[392697502,1761833440284,-500.0,0.00043873,10]
[392697503,1761833440293,-500.24217103,0.00043873,10]
[392697504,1761833440303,-500.0,0.00043873,10]
[392697505,1761833440312,-500.24411736,0.00043873,10]
[392697506,1761833440321,-500.23636804,0.00043873,10]
[392697507,1761833440331,-176.03878631,0.00043873,10]
[392697508,1761833440340,-533.2913648,0.00043873,10]
[392697509,1761833440350,-762.37,0.000439,14]
[392697510,1761833440360,-4696.96969571,0.0004399,2]
[392697511,1761833440369,-36355.37,0.00044,14]
[392697512,1761833440379,-200.0,0.00044,120]
[392697513,1761833440388,-37043.5128575,0.00044099,3]
[392697514,1761833440397,-500.0,0.00044109,120]
[392697515,1761833440407,-500.0,0.00044109,2]
[392697516,1761833440416,-500.0,0.00044109,120]
[392697517,1761833440425,-500.0,0.00044109,120]
[392697518,1761833440434,-500.0,0.00044109,30]
[392697519,1761833440443,-500.0,0.00044109,120]
[392697520,1761833440452,-500.0,0.00044109,120]
[392697521,1761833440461,-500.0,0.00044109,120]
[392697522,1761833440470,-500.0,0.00044109,120]
[392697523,1761833440479,-219.16,0.00044109,120]
[392697524,1761833440488,-533.16,0.00044109,120]
[392697525,1761833440498,-454.45,0.00044109,120]
[392697526,1761833440509,-500.0,0.00044109,120]
[392697527,1761833440518,-500.0,0.00044109,120]
[392697528,1761833440527,-500.0,0.00044109,120]
[392697529,1761833440537,-500.0,0.00044109,120]
[392697530,1761833440546,-500.0,0.00044109,120]
[392697531,1761833440556,-500.0,0.00044109,120]
[392697532,1761833440566,-500.0,0.00044109,120]
[392697533,1761833440575,-500.0,0.00044109,120]
[392697534,1761833440585,-220.8,0.00044109,120]
[392697535,1761833440594,-500.0,0.00044109,120]
[392697536,1761833440603,-373.97,0.00044109,120]
[392697537,1761833440613,-500.0,0.00044109,120]
[392697538,1761833440623,-167.28,0.00044109,120]
[392697539,1761833440632,-500.0,0.00044109,120]
[392697540,1761833440642,-500.0,0.00044109,120]
[392697541,1761833440652,-633.46,0.00044109,120]
[392697542,1761833440661,-500.0,0.00044109,120]
[392697543,1761833440671,-618.43,0.00044109,120]
[392697544,1761833440681,-500.0,0.00044109,120]
[392697545,1761833440691,-500.0,0.00044109,120]
[392697546,1761833440700,-500.0,0.00044109,120]
[392697547,1761833440711,-569.17,0.00044109,120]
[392697548,1761833440721,-500.0,0.00044109,120]
[392697549,1761833440731,-555.9,0.00044109,120]
[392697550,1761833440740,-500.0,0.00044109,120]
[392697551,1761833440750,-599.84,0.00044109,120]
[392697552,1761833440762,-500.0,0.00044109,120]
[392697553,1761833440772,-500.0,0.00044109,120]
[392697554,1761833440781,-500.0,0.00044109,120]
[392697555,1761833440791,-500.0,0.00044109,120]
[392697556,1761833440801,-526.34,0.00044109,120]
[392697557,1761833440810,-500.0,0.00044109,120]
[392697558,1761833440821,-500.0,0.00044109,120]
[392697559,1761833440830,-500.0,0.00044109,120]
[392697560,1761833440841,-346.83396615,0.00044109,7]
[392697561,1761833440851,-500.0,0.00044109,120]
[392697562,1761833440861,-500.0,0.00044109,120]
[392697563,1761833440873,-500.0,0.00044109,120]
[392697564,1761833440885,-500.0,0.00044109,120]
[392697565,1761833440895,-500.0,0.00044109,120]
[392697566,1761833440906,-500.0,0.00044109,120]
[392697567,1761833440915,-622.46,0.00044109,120]
[392697568,1761833440925,-500.0,0.00044109,120]
[392697569,1761833440935,-500.0,0.00044109,120]
[392697570,1761833440945,-563.69,0.00044109,120]
[392697571,1761833440954,-500.0,0.00044109,120]
[392697572,1761833440965,-616.63,0.00044109,120]
[392697573,1761833440975,-500.0,0.00044109,120]
[392697574,1761833440985,-605.29926699,0.00044109,120]
[392697575,1761833440996,-503.64165459,0.00044109,120]
[392697576,1761833441007,-500.0,0.00044109,120]
[392697577,1761833441017,-635.28,0.00044109,120]
[392697578,1761833441027,-560.72,0.00044109,120]
[392697579,1761833441036,-500.0,0.00044109,120]
[392697580,1761833441046,-500.0,0.00044109,120]
[392697581,1761833441057,-500.0,0.00044109,120]
[392697582,1761833441068,-500.0,0.00044109,120]
[392697583,1761833441079,-634.42,0.00044109,120]
[392697584,1761833441090,-280.00561779,0.00044109,120]
[392697585,1761833441101,-575.94,0.00044109,120]
[392697586,1761833441112,-500.0,0.00044109,120]
[392697587,1761833441124,-500.0,0.00044109,120]
[392697588,1761833441134,-500.0,0.00044109,120]
[392697589,1761833441244,-500.0,0.00044109,120]
[392697590,1761833441254,-587.02,0.00044109,120]
[392697591,1761833441271,-500.0,0.00044109,120]
[392697592,1761833441281,-500.0,0.00044109,120]
[392697593,1761833441290,-500.0,0.00044109,120]
[392697594,1761833441300,-500.0,0.00044109,120]
[392697595,1761833441309,-354.7,0.00044109,120]
[392697596,1761833441318,-500.0,0.00044109,120]
[392697597,1761833441327,-473.39,0.00044109,120]
[392697598,1761833441336,-500.0,0.00044109,120]
[392697599,1761833441345,-573.37,0.00044109,120]
[392697600,1761833441355,-500.0,0.00044109,120]
[392697601,1761833441364,-500.0,0.00044109,120]
[392697602,1761833441373,-583.23,0.00044109,120]
[392697603,1761833441383,-500.0,0.00044109,120]
[392697604,1761833441392,-503.54,0.00044109,120]
[392697605,1761833441401,-500.0,0.00044109,120]
[392697606,1761833441410,-640.61,0.00044109,120]
[392697607,1761833441419,-500.0,0.00044109,120]
[392697608,1761833441427,-500.0,0.00044109,120]
[392697609,1761833441436,-500.0,0.00044109,120]
[392697610,1761833441446,-500.0,0.00044109,120]
[392697611,1761833441455,-500.0,0.00044109,120]
[392697612,1761833441463,-500.0,0.00044109,120]
[392697613,1761833441473,-500.0,0.00044109,120]
[392697614,1761833441482,-500.0,0.00044109,120]
[392697615,1761833441491,-925.59,0.00044109,120]
[392697616,1761833441500,-500.0,0.00044109,120]
[392697617,1761833441511,-500.0,0.00044109,120]
[392697618,1761833441519,-530.82,0.00044109,120]
[392697619,1761833441528,-500.0,0.00044109,120]
[392697620,1761833441537,-501.58106851,0.00044109,120]
[392697621,1761833441546,-505.11174115,0.00044109,120]
[392697622,1761833441555,-500.0,0.00044109,120]
[392697623,1761833441564,-501.97545117,0.00044109,120]
[392697624,1761833441573,-502.01400051,0.00044109,120]
[392697625,1761833441582,-500.0,0.00044109,120]
[392697626,1761833441590,-413.30712886,0.00044109,120]
[392697627,1761833441599,-316.92,0.00044109,120]
[392697628,1761833441608,-608.96,0.00044109,120]
[392697629,1761833441617,-307.44,0.00044109,120]
[392697630,1761833441626,-500.0,0.00044109,120]
[392697631,1761833441635,-500.0,0.00044109,2]
[392697632,1761833441644,-501.05579212,0.00044109,120]
[392697633,1761833441653,-500.0,0.00044109,120]
[392697634,1761833441662,-500.0,0.00044109,120]
[392697635,1761833441670,-500.55864054,0.00044109,120]
[392697636,1761833441679,-500.0,0.00044109,7]
[392697637,1761833441688,-501.12133294,0.00044109,120]
[392697638,1761833441697,-529.25,0.00044109,120]
[392697639,1761833441706,-500.0,0.00044109,120]
[392697640,1761833441714,-500.0,0.00044109,120]
[392697641,1761833441724,-526.13,0.00044109,120]
[392697642,1761833441733,-500.0,0.00044109,120]
[392697643,1761833441742,-531.58909743,0.00044109,120]
[392697644,1761833441751,-502.84404159,0.00044109,120]
[392697645,1761833441763,-549.98000004,0.00044109,120]
[392697646,1761833441772,-636.94,0.00044109,30]
[392697647,1761833441781,-500.82799584,0.00044109,120]
[392697648,1761833441790,-503.02712148,0.00044109,120]
[392697649,1761833441799,-500.52662342,0.00044109,2]
[392697650,1761833441807,-502.74676103,0.00044109,120]
[392697651,1761833441817,-500.0,0.00044109,120]
[392697652,1761833441826,-500.0,0.00044109,120]
[392697653,1761833441836,-500.0,0.00044109,120]
[392697654,1761833441846,-500.0,0.00044109,120]
[392697655,1761833441856,-502.55445056,0.00044109,120]
[392697656,1761833441865,-500.0,0.00044109,120]
[392697657,1761833441875,-500.0,0.00044109,120]
[392697658,1761833441884,-500.0,0.00044109,120]
[392697659,1761833441893,-500.0,0.00044109,120]
[392697660,1761833441902,-500.0,0.00044109,120]
[392697661,1761833441911,-344.95,0.00044109,120]
[392697662,1761833441920,-500.0,0.00044109,120]
[392697663,1761833441929,-500.0,0.00044109,120]
[392697664,1761833441938,-762.93,0.00044109,120]
[392697665,1761833441948,-500.0,0.00044109,120]
[392697666,1761833441957,-502.40517983,0.00044109,120]
[392697667,1761833441967,-500.0,0.00044109,120]
[392697668,1761833441975,-501.67089018,0.00044109,120]
[392697669,1761833441984,-229.8,0.00044109,120]
[392697670,1761833441994,-500.0,0.00044109,120]
[392697671,1761833442003,-500.0,0.00044109,120]
[392697672,1761833442015,-500.0,0.00044109,120]
[392697673,1761833442024,-500.0,0.00044109,120]
[392697674,1761833442034,-208.86,0.00044109,120]
[392697675,1761833442043,-500.0,0.00044109,120]
[392697676,1761833442053,-461.92108246,0.00044109,120]
[392697677,1761833442062,-500.0,0.00044109,120]
[392697678,1761833442071,-500.0,0.00044109,120]
[392697679,1761833442080,-500.0,0.00044109,120]
[392697680,1761833442090,-500.0,0.00044109,120]
[392697681,1761833442099,-500.0,0.00044109,120]
[392697682,1761833442110,-555.87115087,0.00044109,120]
[392697683,1761833442119,-633.59367126,0.00044109,120]
[392697684,1761833442127,-616.66,0.00044109,120]
[392697685,1761833442136,-875.06,0.00044109,120]
[392697686,1761833442147,-500.0,0.00044109,120]
[392697687,1761833442162,-500.0,0.00044109,120]
[392697688,1761833442171,-223.55,0.00044109,120]
[392697689,1761833442180,-500.0,0.00044109,120]
[392697690,1761833442190,-500.0,0.00044109,120]
[392697691,1761833442201,-500.0,0.00044109,120]
[392697692,1761833442210,-547.77,0.00044109,120]
[392697693,1761833442220,-914.02666868,0.00044109,2]
[392697694,1761833442230,-444.07,0.00044109,21]
[392697695,1761833442240,-500.0,0.00044109,120]
[392697696,1761833442251,-500.0,0.00044109,3]
[392697697,1761833442262,-355.78,0.00044109,120]
[392697698,1761833442271,-500.0,0.00044109,120]
[392697699,1761833442280,-500.0,0.00044109,120]
[392697700,1761833442290,-205.11,0.00044109,120]
[392697701,1761833442299,-508.52900106,0.00044109,120]
[392697702,1761833442309,-500.0,0.00044109,120]
[392697703,1761833442319,-500.0,0.00044109,120]
[392697704,1761833442328,-500.0,0.00044109,120]
[392697705,1761833442338,-614.3576797,0.00044109,120]
[392697706,1761833442347,-500.0,0.00044109,120]
[392697708,1761833442356,-500.0,0.00044109,120]
[392697710,1761833442365,-500.0,0.00044109,120]
[392697712,1761833442375,-205.77,0.00044109,120]
[392697713,1761833442384,-500.0,0.00044109,120]
[392697715,1761833442394,-500.0,0.00044109,120]
[392697717,1761833442404,-741.36,0.00044109,120]
[392697719,1761833442414,-500.0,0.00044109,120]
[392697721,1761833442424,-658.0,0.00044109,120]
[392697722,1761833442433,-525.0,0.00044109,120]
[392697724,1761833442443,-1859.73,0.00044109,120]
[392697725,1761833442452,-500.0,0.00044109,120]
[392697727,1761833442462,-500.0,0.00044109,120]
[392697729,1761833442471,-306.82,0.00044109,120]
[392697730,1761833442480,-165.15873046,0.00044109,120]
[392697732,1761833442490,-500.0,0.00044109,120]
[392697733,1761833442500,-500.0,0.00044109,120]
[392697734,1761833442510,-500.0,0.00044109,120]
[392697735,1761833442519,-500.0,0.00044109,120]
[392697736,1761833442529,-616.67445383,0.00044109,120]
[392697737,1761833442538,-500.0,0.00044109,120]
[392697738,1761833442547,-500.0,0.00044109,120]
[392697739,1761833442556,-500.0,0.00044109,120]
[392697740,1761833442566,-500.0,0.00044109,120]
[392697741,1761833442575,-500.0,0.00044109,120]
[392697742,1761833442584,-2279.31,0.00044109,120]
[392697743,1761833442594,-500.0,0.00044109,120]
[392697744,1761833442604,-157.57,0.00044109,120]
[392697745,1761833442614,-595.52,0.00044109,120]
[392697746,1761833442623,-500.0,0.00044109,120]
[392697747,1761833442633,-575.32,0.00044109,120]
[392697748,1761833442644,-500.0,0.00044109,120]
[392697749,1761833442654,-500.0,0.00044109,120]
[392697750,1761833442663,-183.57,0.00044109,120]
[392697751,1761833442673,-507.44,0.00044109,120]
[392697752,1761833442682,-601.9,0.00044109,120]
[392697753,1761833442691,-500.0,0.00044109,120]
[392697754,1761833442701,-500.39334977,0.00044173,10]
[392697755,1761833442712,-500.0,0.00044173,7]
[392697756,1761833442722,-500.25547286,0.00044173,10]
[392697757,1761833442731,-500.22451106,0.00044173,10]
[392697758,1761833442741,-18521.7564288,0.0004419,3]
[392697759,1761833442752,-8000.0,0.000442,120]
[392697760,1761833442764,-1000.0,0.000443,120]
[392697761,1761833442773,-1000.0,0.000443,120]
[392697762,1761833442782,-1000.0,0.000443,120]
[392697763,1761833442791,-1000.0,0.000443,120]
[392697764,1761833442801,-500.0,0.00044383,120]
[392697765,1761833442811,-500.0,0.00044383,2]
[392697766,1761833442821,-500.0,0.00044383,120]
[392697767,1761833442831,-500.0,0.00044383,120]
[392697768,1761833442840,-500.0,0.00044383,30]
[392697769,1761833442850,-500.0,0.00044383,120]
[392697770,1761833442859,-500.0,0.00044383,120]
[392697771,1761833442869,-518.86273366,0.00044383,120]
[392697772,1761833442878,-500.0,0.00044383,120]
[392697773,1761833442888,-225.52,0.00044383,120]
[392697774,1761833442897,-500.0,0.00044383,120]
[392697775,1761833442906,-500.0,0.00044383,120]
[392697776,1761833442916,-500.0,0.00044383,120]
[392697777,1761833442926,-218.64,0.00044383,120]
[392697778,1761833442935,-500.0,0.00044383,120]
[392697779,1761833442945,-285.12,0.00044383,120]
[392697780,1761833442955,-272.91,0.00044383,120]
[392697781,1761833442965,-500.0,0.00044383,120]
[392697782,1761833442974,-195.71,0.00044383,120]
[392697783,1761833442984,-305.1,0.00044383,120]
[392697784,1761833442993,-213.28,0.00044383,120]
[392697785,1761833443002,-506.72,0.00044383,120]
[392697786,1761833443012,-306.44318698,0.00044383,120]
[392697787,1761833443022,-194.35,0.00044383,120]
[392697788,1761833443030,-500.0,0.00044383,120]
[392697789,1761833443040,-346.9,0.00044383,120]
[392697790,1761833443049,-500.0,0.00044383,120]
[392697791,1761833443059,-332.52,0.00044383,120]
[392697792,1761833443068,-555.18,0.00044383,120]
[392697793,1761833443077,-500.0,0.00044383,120]
[392697794,1761833443086,-500.0,0.00044383,120]
[392697795,1761833443095,-154.66,0.00044383,120]
[392697796,1761833443107,-500.0,0.00044383,120]
[392697797,1761833443117,-192.26,0.00044383,120]
[392697798,1761833443127,-500.0,0.00044383,120]
[392697799,1761833443136,-319.7949979,0.00044383,120]
[392697800,1761833443145,-500.0,0.00044383,120]
[392697801,1761833443155,-925.59,0.00044383,120]
[392697802,1761833443166,-500.0,0.00044383,120]
[392697803,1761833443175,-500.0,0.00044383,120]
[392697804,1761833443184,-500.0,0.00044383,120]
[392697805,1761833443194,-500.0,0.00044383,120]
[392697806,1761833443204,-500.0,0.00044383,120]
[392697807,1761833443213,-484.16,0.00044383,2]
[392697808,1761833443222,-449.35,0.00044383,120]
[392697809,1761833443231,-500.0,0.00044383,120]
[392697810,1761833443243,-500.0,0.00044383,120]
[392697811,1761833443252,-573.11,0.00044383,120]
[392697812,1761833443262,-245.4655822,0.00044383,120]
[392697813,1761833443271,-500.0,0.00044383,120]
[392697814,1761833443280,-571.86,0.00044383,120]
[392697815,1761833443289,-500.0,0.00044383,120]
[392697816,1761833443299,-501.38240435,0.00044383,120]
[392697817,1761833443307,-500.0,0.00044383,120]
[392697818,1761833443318,-592.39956719,0.00044383,120]
[392697819,1761833443327,-500.0,0.00044383,120]
[392697820,1761833443336,-762.93,0.00044383,120]
[392697821,1761833443345,-500.0,0.00044383,120]
[392697822,1761833443355,-502.69008004,0.00044383,120]
[392697823,1761833443364,-500.0,0.00044383,120]
[392697824,1761833443373,-500.0,0.00044383,120]
[392697825,1761833443382,-176.3075999,0.00044383,120]
[392697826,1761833443391,-503.65627486,0.00044383,120]
[392697827,1761833443400,-503.66321422,0.00044383,120]
[392697828,1761833443409,-500.0,0.00044383,120]
[392697829,1761833443419,-235.01,0.00044383,120]
[392697830,1761833443430,-503.83083727,0.00044383,120]
[392697831,1761833443439,-443.28050108,0.00044383,120]
[392697832,1761833443448,-875.06,0.00044383,120]
[392697833,1761833443457,-298.37482289,0.00044383,120]
[392697834,1761833443466,-614.34,0.00044383,120]
[392697835,1761833443475,-165.69,0.00044383,120]
[392697836,1761833443484,-265.41,0.00044383,120]
[392697837,1761833443493,-500.0,0.00044383,3]
[392697838,1761833443502,-316.72817171,0.00044383,120]
[392697839,1761833443512,-527.32,0.00044383,120]
[392697840,1761833443522,-630.01,0.00044383,120]
[392697841,1761833443531,-499.39,0.00044383,120]
[392697842,1761833443541,-521.78,0.00044383,120]
[392697843,1761833443550,-500.0,0.00044383,120]
[392697844,1761833443559,-500.0,0.00044383,120]
[392697845,1761833443568,-500.0,0.00044383,120]
[392697846,1761833443577,-500.0,0.00044383,120]
[392697847,1761833443586,-334.47,0.00044383,120]
[392697848,1761833443595,-741.36,0.00044383,120]
[392697849,1761833443604,-500.0,0.00044383,120]
[392697850,1761833443613,-658.0,0.00044383,120]
[392697851,1761833443622,-525.0,0.00044383,120]
[392697852,1761833443631,-1859.73,0.00044383,120]
[392697853,1761833443640,-500.0,0.00044383,120]
[392697854,1761833443650,-500.0,0.00044383,120]
[392697855,1761833443659,-500.0,0.00044383,120]
[392697856,1761833443755,-608.67290541,0.00044383,120]
[392697857,1761833443765,-500.0,0.00044383,120]
[392697858,1761833443775,-313.68,0.00044383,120]
[392697859,1761833443784,-414.57,0.00044383,120]
[392697860,1761833443794,-500.0,0.00044383,120]
[392697861,1761833443803,-215.85,0.00044383,120]
[392697862,1761833443812,-500.0,0.00044383,120]
[392697863,1761833443821,-2279.31,0.00044383,120]
[392697864,1761833443830,-500.0,0.00044383,120]
[392697865,1761833443839,-500.0,0.00044383,120]
[392697866,1761833443848,-575.32,0.00044383,120]
[392697867,1761833443858,-269.64,0.00044383,120]
[392697868,1761833443868,-305.45,0.00044383,120]
[392697869,1761833443877,-500.0,0.00044421,10]
[392697870,1761833443887,-63749.22,0.000446,14]
[392697871,1761833443897,-29266.71854626,0.00044645,120]
[392697872,1761833443906,-620.6461,0.00044657,120]
[392697873,1761833443916,-500.0,0.00044657,2]
[392697874,1761833443925,-500.0,0.00044657,120]
[392697875,1761833443934,-500.0,0.00044657,120]
[392697876,1761833443943,-500.0,0.00044657,30]
[392697877,1761833443952,-500.0,0.00044657,120]
[392697878,1761833443962,-500.0,0.00044657,120]
[392697879,1761833443971,-500.0,0.00044657,120]
[392697880,1761833443981,-500.0,0.00044657,120]
[392697881,1761833443990,-500.0,0.00044657,120]
[392697882,1761833443999,-500.0,0.00044657,120]
[392697883,1761833444009,-187.50792769,0.00044657,120]
[392697884,1761833444018,-500.0,0.00044657,120]
[392697885,1761833444027,-500.0,0.00044657,120]
[392697886,1761833444036,-500.0,0.00044657,120]
[392697887,1761833444045,-500.0,0.00044657,120]
[392697888,1761833444054,-500.0,0.00044657,120]
[392697889,1761833444064,-637.13295039,0.00044657,120]
[392697890,1761833444076,-500.0,0.00044657,120]
[392697891,1761833444085,-925.59,0.00044657,120]
[392697892,1761833444096,-500.0,0.00044657,120]
[392697893,1761833444105,-500.0,0.00044657,120]
[392697894,1761833444115,-500.0,0.00044657,120]
[392697895,1761833444124,-500.0,0.00044657,120]
[392697896,1761833444134,-500.0,0.00044657,120]
[392697897,1761833444143,-500.0,0.00044657,120]
[392697898,1761833444153,-500.0,0.00044657,120]
[392697899,1761833444166,-500.0,0.00044657,120]
[392697900,1761833444175,-623.72,0.00044657,120]
[392697901,1761833444184,-500.0,0.00044657,120]
[392697902,1761833444193,-762.93,0.00044657,120]
[392697903,1761833444203,-500.0,0.00044657,120]
[392697904,1761833444212,-500.0,0.00044657,120]
[392697905,1761833444221,-500.0,0.00044657,120]
[392697906,1761833444231,-500.0,0.00044657,120]
[392697907,1761833444240,-875.06,0.00044657,120]
[392697908,1761833444249,-500.0,0.00044657,3]
[392697909,1761833444259,-500.0,0.00044657,120]
[392697910,1761833444268,-500.0,0.00044657,120]
[392697911,1761833444278,-500.0,0.00044657,120]
[392697912,1761833444287,-500.0,0.00044657,120]
[392697913,1761833444296,-741.36,0.00044657,120]
[392697914,1761833444305,-500.0,0.00044657,120]
[392697915,1761833444315,-658.0,0.00044657,120]
[392697916,1761833444324,-1859.73,0.00044657,120]
[392697917,1761833444333,-525.0,0.00044657,120]
[392697918,1761833444342,-500.0,0.00044657,120]
[392697919,1761833444351,-334.83,0.00044657,120]
[392697920,1761833444360,-500.0,0.00044657,120]
[392697921,1761833444372,-500.0,0.00044657,120]
[392697922,1761833444381,-500.0,0.00044657,120]